Workbook

Sheet AWS IoT Pricing Calculator
Z2: Data storage | BC2: Data storage
D3: AWS IoT Analytics - Pricing Calculator updated Aug 23, 2018 | O3: Option 1 : Estimation using devices and their data | S3: Devices | T3: 10000 | U3: 100000 | V3: 1000000 | Y3: Data processing (GB) | Z3: Processed data (GB) | AA3: Raw data - S3 | AB3: Query execution (TB) | AC3: Compute (ACU-Hours) | AF3: AWS IoT Analytics - Pricing Calculator updated Aug 23, 2018 | AR3: Option 2 : Estimation using data ingested | AV3: Data (GB) | AW3: 1 | AX3: 10 | AY3: 100 | AZ3: 1000 | BB3: Data processing (GB) | BC3: Processed data (GB) | BD3: Raw data - S3 | BE3: Query execution (TB) | BF3: Compute (ACU-Hours)
X4: US East (N. Virginia) | Y4: 0.2 | Z4: 0.03 | AA4: Ranges | AB4: 6.5 | AC4: 0.36 | BA4: US East (N. Virginia) | BB4: 0.2 | BC4: 0.03 | BD4: Ranges | BE4: 6.5 | BF4: 0.36
N5: Estimated Price (USD) | S5: Devices | T5: =D7 -> 1000000 | X5: US East (Ohio) | Y5: 0.2 | Z5: 0.03 | AA5: Ranges | AB5: 6.5 | AC5: 0.36 | AQ5: Estimated Price (USD) | BA5: US East (Ohio) | BB5: 0.2 | BC5: 0.03 | BD5: Ranges | BE5: 6.5 | BF5: 0.36
D6: # Devices sending data | H6: AWS Region | O6: Month | Q6: Year | S6: Messages per device | T6: =F10 -> 4320 | V6: incoming raw data | X6: US West (Oregon) | Y6: 0.2 | Z6: 0.03 | AA6: Ranges | AB6: 6.5 | AC6: 0.36 | AF6: Data Ingested per Month (GB) | AK6: AWS Region | AR6: Month | AT6: Year | AV6: Raw data | AW6: =AG16 -> 12069940.57 | AX6: GB | AY6: stored raw | BA6: US West (Oregon) | BB6: 0.2 | BC6: 0.03 | BD6: Ranges | BE6: 6.5 | BF6: 0.36
D7: 1000000 | H7: US East (N. Virginia) | N7: Total | O7: =Y17 -> 205250.6885 | Q7: =Z17 -> 2463008.262 | S7: Message size | T7: =F11 -> 200000 | U7: bytes | X7: EU (Ireland) | Y7: 0.2 | Z7: 0.03 | AA7: Ranges | AB7: 6.5 | AC7: 0.36 | AF7: 12069940.57 | AK7: US East (N. Virginia) | AQ7: Total | AR7: =BB17 -> 3032775.082 | AT7: =BC17 -> 36393300.99 | AV7: Processed data | AW7: =AG18 -> 12069940.57 | AX7: GB | AY7: stored processed | BA7: EU (Ireland) | BB7: 0.2 | BC7: 0.03 | BD7: Ranges | BE7: 6.5 | BF7: 0.36
S8: Raw data | T8: =F16 -> 804662.7045 | U8: GB | V8: stored raw | AV8: Pipeline processing | AW8: =AG11 -> 12069940.57 | AX8: GB
D9: Data Processing | I9: =Y12 -> 160932.5409 | S9: Processed message size | T9: =F11+G12-G13 -> 200500 | U9: bytes | X9: Region | Y9: Price | AF9: Data Processing | AK9: =BB12 -> 2413988.113 | AL9: per month | AV9: Queries | AW9: =AI23 -> 30 | BA9: Region | BB9: Price
D10: Each device sends | F10: 4320 | G10: messages per month | S10: Processed data | T10: =E18 -> 806674.3612 | U10: GB | X10: =H7 -> US East (N. Virginia) | Y10: =VLOOKUP($X$10,$X$4:$AC$7,2,FALSE) -> 0.2 | Z10: =VLOOKUP($X$10,$X$4:$AC$7,3,FALSE) -> 0.03 | AA10: =VLOOKUP($X$10,$X$4:$AC$7,4,FALSE) -> Ranges | AB10: =VLOOKUP($X$10,$X$4:$AC$7,5,FALSE) -> 6.5 | AC10: =VLOOKUP($X$10,$X$4:$AC$7,6,FALSE) -> 0.36 | AV10: Each scan | AW10: =AI25 -> 10240 | AX10: GB | BA10: =AK7 -> US East (N. Virginia) | BB10: =VLOOKUP($BA$10,$BA$4:$BF$7,2,FALSE) -> 0.2 | BC10: =VLOOKUP($BA$10,$BA$4:$BF$7,3,FALSE) -> 0.03 | BD10: =VLOOKUP($BA$10,$BA$4:$BF$7,4,FALSE) -> Ranges | BE10: =VLOOKUP($BA$10,$BA$4:$BF$7,5,FALSE) -> 6.5 | BF10: =VLOOKUP($BA$10,$BA$4:$BF$7,6,FALSE) -> 0.36
D11: Each message size is | F11: 200000 | G11: bytes | S11: Queries | T11: =G23 -> 30 | X11: Input | Y11: =T8 -> 804662.7045 | Z11: =T10 -> 806674.3612 | AA11: =T8 -> 804662.7045 | AB11: =T13 -> 300 | AC11: =T21 -> 2000 | AF11: Sending | AG11: =AF7 -> 12069940.57 | AH11: GB per month to be processed in a pipeline | AV11: Total data scanned | AW11: =AW10*AW9/1024 -> 300 | AX11: TB | BA11: Input | BB11: =AW6 -> 12069940.57 | BC11: =AW7 -> 12069940.57 | BD11: =AW6 -> 12069940.57 | BE11: =AW11 -> 300 | BF11: =AW12 -> 2000
D12: I'll enrich each message with | G12: 500 | H12: bytes per message | S12: Each scan | T12: =G25 -> 10240 | U12: GB | X12: Calculated cost | Y12: =Y11*Y10 -> 160932.5409 | Z12: =Z11*Z10 -> 24200.23084 | AA12: =VLOOKUP(T8,$X$21:$Z$23,3,TRUE) -> 17447.91679 | AB12: 1950 | AC12: =AC10*AC11 -> 720 | AV12: Total Compute ACU Hours | AW12: =AL29*AI29 -> 2000 | BA12: Calculated cost | BB12: =BB11*BB10 -> 2413988.113 | BC12: =BC11*BC10 -> 362098.217 | BD12: =VLOOKUP(BD11,BA21:BC23,3,TRUE) -> 254018.7519 | BE12: =BE11*BE10 -> 1950 | BF12: =BF10*BF11 -> 720
D13: I'll filter out | G13: 0 | H13: bytes per message | S13: Total data scanned | T13: =(T11*T12)/1024 -> 300 | U13: TB
D14: Data Storage | I14: =SUM(Z12:AA12) -> 41648.14763 | AF14: Data Storage | AK14: =SUM(BC12:BD12) -> 616116.9689 | AL14: per month | AV14: Raw data | AW14: 1 | AX14: =AF7 -> 12069940.57
S15: messages | T15: enrich | U15: filter | Y15: Month | Z15: Year | AW15: 0.9 | AX15: =0.9*AF7 -> 10862946.51 | BB15: Month | BC15: Year
D16: The devices will send | F16: =($D$7*$F$11*$F$10)/(1024^3) -> 804662.7045 | G16: GB of raw data per month. | S16: 500 | T16: 0 | U16: 0 | X16: Per device | Y16: =Y17/T5 -> 0.2052506885 | Z16: =Z17/T5 -> 2.463008262 | AF16: I'll store | AG16: 12069940.57 | AH16: GB of raw data per month. | AW16: 0.75 | AX16: =0.75*AF7 -> 9052455.425
S17: 1000 | T17: 50 | U17: 50 | X17: Total | Y17: =SUM(Y12:AC12) -> 205250.6885 | Z17: =Y17*12 -> 2463008.262 | AW17: 1.1 | AX17: =1.1*AF7 -> 13276934.62 | BA17: Total | BB17: =SUM(BB12:BF12) -> 3032775.082 | BC17: =BB17*12 -> 36393300.99
D18: and | E18: =($D$7*$F$10*($F$11+$G$12-$G$13))/(1024^3) -> 806674.3612 | F18: GB of processed data per month. | S18: 10000 | T18: 100 | U18: 100 | AF18: and | AG18: 12069940.57 | AH18: GB of processed data per month.
S19: 100000 | T19: 500 | U19: 250 | AV19: Processed data
X20: Range 1 | Y20: Range 2 | Z20: Total Price | AA20: Price | AW20: 1 | AX20: =AF7 -> 12069940.57 | BA20: Range 1 | BB20: Range 2 | BC20: Total Price | BD20: Price
D21: Query Execution | I21: =AB12 -> 1950 | S21: Total Compute ACU Hours | T21: =J29*G29 -> 2000 | X21: 0 | Y21: 50000 | Z21: =T8*AA21 -> 18507.2422 | AA21: 0.023 | AF21: Query Execution | AK21: =BE12 -> 1950 | AL21: per month | AW21: 0.75 | AX21: =0.75*AF7 -> 9052455.425 | BA21: 0 | BB21: 50000 | BC21: =AW6*BD21 -> 277608.633 | BD21: 0.023
X22: 50000.001 | Y22: 500000 | Z22: =AA21*Y21+AA22*(T8-Y21) -> 17752.5795 | AA22: 0.022 | AW22: 0.5 | AX22: =0.5*AF7 -> 6034970.284 | BA22: 50000.001 | BB22: 500000 | BC22: =BD21*BB21+BD22*(AW6-BB21) -> 265588.6925 | BD22: 0.022
D23: Each month, I'll execute | G23: 30 | H23: queries | X23: 500000.001 | Y23: =5*10^12 -> 5000000000000 | Z23: =AA21*Y21+AA22*450000+AA23*(T8-500000) -> 17447.91679 | AA23: 0.021 | AF23: Each month, I'll execute | AI23: 30 | AJ23: queries | AW23: 1.25 | AX23: =1.25*AF7 -> 15087425.71 | BA23: 500000.001 | BB23: =5*10^12 -> 5000000000000 | BC23: =BD21*BB21+BD22*450000+BD23*(AW6-500000) -> 254018.7519 | BD23: 0.021
D25: Each query will scan | G25: 10240 | H25: GB of data | AF25: Each query will scan | AI25: 10240 | AJ25: GB of data | AV25: scanned <= processed data
AV26: can't scan more than data processed
D27: Custom Analysis Execution | I27: =AC12 -> 720 | S27: scanned <= processed data | AF27: Custom Analysis Execution | AK27: =BF12 -> 720 | AV27: calculate S3 tiers based on monthly raw data
S28: can't scan more than data processed
D29: Each month, I'll execute my custom container using | G29: 2 | H29: ACU | I29: for | J29: 1000 | K29: hours | S29: calculate S3 tiers based on monthly raw data | AF29: Each month, I'll execute my custom container using | AI29: 2 | AJ29: ACU | AK29: for | AL29: 1000 | AM29: hours
C32: This Calculator provides an estimate of usage charges for AWS services based on certain information you provide. Monthly charges will be based on your actual usage of AWS services, and may vary from the estimates the Calculator has provided. Prices effective April 24, 2018. | AE32: This Calculator provides an estimate of usage charges for AWS services based on certain information you provide. Monthly charges will be based on your actual usage of AWS services, and may vary from the estimates the Calculator has provided. Prices effective April 24, 2018.
